Workbook

Sheet Доходы
A1: Отчет об исполнении районного бюджета Никифоровского района за 2012 год
U2: 0503317
B3: на 01 января 2013 г. | U3: 2013-01-01
A5: Наименование финансового органа | D5: Финансовое управление администрации Никифоровского района
A6: Наименование бюджета | D6: Собственный бюджет МНЦП
A8: Единица измерения: руб | U8: 383
A9: 1. Доходы бюджета
C11: Утвержденные бюджетные назначения на 2012 год | M11: консолидиро- ванный бюджет субъекта Российской Федерации и территориального государственного внебюджетного фонда | O11: консолидиро- ванный бюджет субъекта Российской Федерации | Q11: бюджет субъекта Российской Федерации | R11: бюджеты внутригородских муниципальных образований городов федерального значения Москвы и Санкт-Петербурга | S11: бюджеты городских округов | T11: Исполнено за 2012 год | U11: бюджеты городских и сельских поселений | V11: бюджет территори- ального государст- венного внебюджетного фонда | W11: % исполнения
N12: суммы подлежащие исключению в рамках консолидированного бюджета субъекта Российской Федерации и бюджета территориального государственного внебюджетного фонда | P12: суммы подлежащие исключению в рамках консолидированного бюджета субъекта Российской Федерации
A13: 1 | B13: 2 | C13: 4 | D13: 5 | E13: 6 | F13: 7 | G13: 8 | H13: 9 | I13: 10 | J13: 3 | K13: 12 | L13: 13 | M13: 14 | N13: 15 | O13: 16 | P13: 17 | Q13: 18 | R13: 19 | S13: 20 | T13: 4 | U13: 22 | V13: 23 | W13: 5
A14: Доходы бюджета - ИТОГО | B14: х | C14: 62554700 | E14: 62554700 | F14: 170664855 | J14: 233219555 | M14: 65121369.98 | O14: 65121369.98 | P14: 169696993.3 | T14: 234818363.3 | W14: =T14/J14*100 -> 100.6855378
A15: в том числе:
A16: НАЛОГОВЫЕ И НЕНАЛОГОВЫЕ ДОХОДЫ | B16: 000 1000000000 0000 000 | C16: 62554700 | E16: 62554700 | J16: 62554700 | M16: 65003369.98 | O16: 65003369.98 | T16: 65003369.98 | W16: =T16/J16*100 -> 103.914446
A17: НАЛОГИ НА ПРИБЫЛЬ, ДОХОДЫ | B17: 000 1010000000 0000 000 | C17: 47034800 | E17: 47034800 | J17: 47034800 | M17: 49105849.6 | O17: 49105849.6 | T17: 49105849.6 | W17: =T17/J17*100 -> 104.4032282
A18: Налог на доходы физических лиц | B18: 000 1010200001 0000 110 | C18: 47034800 | E18: 47034800 | J18: 47034800 | M18: 49105849.6 | O18: 49105849.6 | T18: 49105849.6 | W18: =T18/J18*100 -> 104.4032282
A19: Налог на доходы физических лиц с доходов, источником которых является налоговый агент, за исключением доходов, в отношении которых исчисление и уплата налога осуществляются в соответствии со статьями 227, 2271 и 228 Налогового кодекса Российской Федерации | B19: 000 1010201001 0000 110 | C19: 45646800 | E19: 45646800 | J19: 45646800 | M19: 47707747.4 | O19: 47707747.4 | T19: 47707747.4 | W19: =T19/J19*100 -> 104.5149877
A20: Налог на доходы физических лиц с доходов, полученных от осуществления деятельности физическими лицами, зарегистрированными в качестве индивидуальных предпринимателей, нотариусов, занимающихся частной практикой, адвокатов, учредивших адвокатские кабинеты и других лиц, занимающихся частной практикой в соответствии со статьей 227 Налогового кодекса Российской Федерации | B20: 000 1010202001 0000 110 | C20: 1050000 | E20: 1050000 | J20: 1050000 | M20: 1059901.7 | O20: 1059901.7 | T20: 1059901.7 | W20: =T20/J20*100 -> 100.943019
A21: Налог на доходы физических лиц с доходов, полученных физическими лицами в соответствии со статьей 228 Налогового Кодекса Российской Федерации | B21: 000 1010203001 0000 110 | C21: 259000 | E21: 259000 | J21: 259000 | M21: 259000.5 | O21: 259000.5 | T21: 259000.5 | W21: =T21/J21*100 -> 100.0001931
A22: Налог на доходы физических лиц в виде фиксированных авансовых платежей с доходов, полученных физическими лицами, являющимися иностранными гражданами, осуществляющими трудовую деятельность по найму у физических лиц на основании патента в соответствии со статьей 2271 Налогового кодекса Российской Федерации | B22: 000 1010204001 0000 110 | C22: 79000 | E22: 79000 | J22: 79000 | M22: 79200 | O22: 79200 | T22: 79200 | W22: =T22/J22*100 -> 100.2531646
A23: НАЛОГИ НА СОВОКУПНЫЙ ДОХОД | B23: 000 1050000000 0000 000 | C23: 6242000 | E23: 6242000 | J23: 6242000 | M23: 6353053.69 | O23: 6353053.69 | T23: 6353053.69 | W23: =T23/J23*100 -> 101.7791363
A24: Единый налог на вмененный доход для отдельных видов деятельности | B24: 000 1050200002 0000 110 | C24: 5473000 | E24: 5473000 | J24: 5473000 | M24: 5581436.83 | O24: 5581436.83 | T24: 5581436.83 | W24: =T24/J24*100 -> 101.9813051
A25: Единый налог на вмененный доход для отдельных видов деятельности | B25: 000 1050201002 0000 110 | C25: 5456600 | E25: 5456600 | J25: 5456600 | M25: 5565006.96 | O25: 5565006.96 | T25: 5565006.96 | W25: =T25/J25*100 -> 101.9867126
A26: Единый налог на вмененный доход для отдельных видов деятельности (за налоговые периоды, истекшие до 1 января 2011 года) | B26: 000 1050202002 0000 110 | C26: 16400 | E26: 16400 | J26: 16400 | M26: 16429.87 | O26: 16429.87 | T26: 16429.87 | W26: =T26/J26*100 -> 100.1821341
A27: Единый сельскохозяйственный налог | B27: 000 1050300001 0000 110 | C27: 769000 | E27: 769000 | J27: 769000 | M27: 771616.86 | O27: 771616.86 | T27: 771616.86 | W27: =T27/J27*100 -> 100.3402939
A28: Единый сельскохозяйственный налог | B28: 000 1050301001 0000 110 | C28: 769000 | E28: 769000 | J28: 769000 | M28: 771741.37 | O28: 771741.37 | T28: 771741.37 | W28: =T28/J28*100 -> 100.356485
A29: Единый сельскохозяйственный налог (за налоговые периоды, истекшие до 1 января 2011 года) | B29: 000 1050302001 0000 110 | M29: -124.51 | O29: -124.51 | T29: -124.51 | W29: =T29/J29*100 -> 
A30: ГОСУДАРСТВЕННАЯ ПОШЛИНА | B30: 000 1080000000 0000 000 | C30: 760000 | E30: 760000 | J30: 760000 | M30: 670670.94 | O30: 670670.94 | T30: 670670.94 | W30: =T30/J30*100 -> 88.24617632
A31: Государственная пошлина по делам, рассматриваемым в судах общей юрисдикции, мировыми судьями | B31: 000 1080300001 0000 110 | C31: 760000 | E31: 760000 | J31: 760000 | M31: 670670.94 | O31: 670670.94 | T31: 670670.94 | W31: =T31/J31*100 -> 88.24617632
A32: Государственная пошлина по делам, рассматриваемым в судах общей юрисдикции, мировыми судьями (за исключением Верховного Суда Российской Федерации) | B32: 000 1080301001 0000 110 | C32: 760000 | E32: 760000 | J32: 760000 | M32: 670670.94 | O32: 670670.94 | T32: 670670.94 | W32: =T32/J32*100 -> 88.24617632
A33: ЗАДОЛЖЕННОСТЬ И ПЕРЕРАСЧЕТЫ ПО ОТМЕНЕННЫМ НАЛОГАМ, СБОРАМ И ИНЫМ ОБЯЗАТЕЛЬНЫМ ПЛАТЕЖАМ | B33: 000 1090000000 0000 000 | M33: -78481.11 | O33: -78481.11 | T33: -78481.11
A34: Налоги на имущество | B34: 000 1090400000 0000 110 | M34: -104976.37 | O34: -104976.37 | T34: -104976.37
A35: Земельный налог (по обязательствам, возникшим до 1 января 2006 года) | B35: 000 1090405000 0000 110 | M35: -104976.37 | O35: -104976.37 | T35: -104976.37
A36: Земельный налог (по обязательствам, возникшим до 1 января 2006 года), мобилизуемый на межселенных территориях | B36: 000 1090405305 0000 110 | M36: -104976.37 | O36: -104976.37 | T36: -104976.37
A37: Прочие налоги и сборы (по отмененным налогам и сборам субъектов Российской Федерации) | B37: 000 1090600002 0000 110 | M37: -8848.25 | O37: -8848.25 | T37: -8848.25
A38: Налог с продаж | B38: 000 1090601002 0000 110 | M38: -8848.25 | O38: -8848.25 | T38: -8848.25
A39: Прочие налоги и сборы (по отмененным местным налогам и сборам) | B39: 000 1090700000 0000 110 | M39: 35343.51 | O39: 35343.51 | T39: 35343.51
A40: Целевые сборы с граждан и предприятий, учреждений, организаций на содержание милиции, на благоустройство территорий, на нужды образования и другие цели | B40: 000 1090703000 0000 110 | M40: 986.51 | O40: 986.51 | T40: 986.51
A41: Целевые сборы с граждан и предприятий, учреждений, организаций на содержание милиции, на благоустройство территорий, на нужды образования и другие цели, мобилизуемые на территориях муниципальных районов | B41: 000 1090703305 0000 110 | M41: 986.51 | O41: 986.51 | T41: 986.51
A42: Прочие местные налоги и сборы | B42: 000 1090705000 0000 110 | M42: 34357 | O42: 34357 | T42: 34357
A43: Прочие местные налоги и сборы, мобилизуемые на территориях муниципальных районов | B43: 000 1090705305 0000 110 | M43: 34357 | O43: 34357 | T43: 34357
A44: ДОХОДЫ ОТ ИСПОЛЬЗОВАНИЯ ИМУЩЕСТВА, НАХОДЯЩЕГОСЯ В ГОСУДАРСТВЕННОЙ И МУНИЦИПАЛЬНОЙ СОБСТВЕННОСТИ | B44: 000 1110000000 0000 000 | C44: 3825400 | E44: 3825400 | J44: 3825400 | M44: 3967032.56 | O44: 3967032.56 | T44: 3967032.56 | W44: =T44/J44*100 -> 103.7024248
A45: Доходы, получаемые в виде арендной либо иной платы за передачу в возмездное пользование государственного и муниципального имущества (за исключением имущества бюджетных и автономных учреждений, а также имущества государственных и муниципальных унитарных предприятий, в том числе казенных) | B45: 000 1110500000 0000 120 | C45: 3825400 | E45: 3825400 | J45: 3825400 | M45: 3967032.56 | O45: 3967032.56 | T45: 3967032.56 | W45: =T45/J45*100 -> 103.7024248
A46: Доходы, получаемые в виде арендной платы за земельные участки, государственная собственность на которые не разграничена, а также средства от продажи права на заключение договоров аренды указанных земельных участков | B46: 000 1110501000 0000 120 | C46: 2625800 | E46: 2625800 | J46: 2625800 | M46: 2744047.64 | O46: 2744047.64 | T46: 2744047.64 | W46: =T46/J46*100 -> 104.5032996
A47: Доходы, получаемые в виде арендной платы за земельные участки, государственная собственность на которые не разграничена и которые расположены в границах поселений, а также средства от продажи права на заключение договоров аренды указанных земельных участков | B47: 000 1110501310 0000 120 | C47: 2625800 | E47: 2625800 | J47: 2625800 | M47: 2744047.64 | O47: 2744047.64 | T47: 2744047.64 | W47: =T47/J47*100 -> 104.5032996
A48: Доходы от сдачи в аренду имущества, находящегося в оперативном управлении органов государственной власти, органов местного самоуправления, государственных внебюджетных фондов и созданных ими учреждений (за исключением имущества бюджетных и автономных учреждений) | B48: 000 1110503000 0000 120 | C48: 1199600 | E48: 1199600 | J48: 1199600 | M48: 1222984.92 | O48: 1222984.92 | T48: 1222984.92 | W48: =T48/J48*100 -> 101.9493931
A49: Доходы от сдачи в аренду имущества, находящегося в оперативном управлении органов управления муниципальных районов и созданных ими учреждений (за исключением имущества муниципальных бюджетных и автономных учреждений) | B49: 000 1110503505 0000 120 | C49: 1199600 | E49: 1199600 | J49: 1199600 | M49: 1222984.92 | O49: 1222984.92 | T49: 1222984.92 | W49: =T49/J49*100 -> 101.9493931
A50: ПЛАТЕЖИ ПРИ ПОЛЬЗОВАНИИ ПРИРОДНЫМИ РЕСУРСАМИ | B50: 000 1120000000 0000 000 | C50: 1007000 | E50: 1007000 | J50: 1007000 | M50: 1018964.52 | O50: 1018964.52 | T50: 1018964.52 | W50: =T50/J50*100 -> 101.1881351
A51: Плата за негативное воздействие на окружающую среду | B51: 000 1120100001 0000 120 | C51: 1007000 | E51: 1007000 | J51: 1007000 | M51: 1018964.52 | O51: 1018964.52 | T51: 1018964.52 | W51: =T51/J51*100 -> 101.1881351
A52: Плата за выбросы загрязняющих веществ в атмосферный воздух стационарными объектами | B52: 000 1120101001 0000 120 | C52: 76700 | E52: 76700 | J52: 76700 | M52: 78482.16 | O52: 78482.16 | T52: 78482.16 | W52: =T52/J52*100 -> 102.3235463
A53: Плата за выбросы загрязняющих веществ в атмосферный воздух передвижными объектами | B53: 000 1120102001 0000 120 | C53: 12000 | E53: 12000 | J53: 12000 | M53: 12758.13 | O53: 12758.13 | T53: 12758.13 | W53: =T53/J53*100 -> 106.31775
A54: Плата за сбросы загрязняющих веществ в водные объекты | B54: 000 1120103001 0000 120 | C54: 11200 | E54: 11200 | J54: 11200 | M54: 11337.87 | O54: 11337.87 | T54: 11337.87 | W54: =T54/J54*100 -> 101.2309821
A55: Плата за размещение отходов производства и потребления | B55: 000 1120104001 0000 120 | C55: 907100 | E55: 907100 | J55: 907100 | M55: 916386.36 | O55: 916386.36 | T55: 916386.36 | W55: =T55/J55*100 -> 101.0237416
A56: ДОХОДЫ ОТ ОКАЗАНИЯ ПЛАТНЫХ УСЛУГ (РАБОТ) И КОМПЕНСАЦИИ ЗАТРАТ ГОСУДАРСТВА | B56: 000 1130000000 0000 000 | C56: 34500 | E56: 34500 | J56: 34500 | M56: 37369.97 | O56: 37369.97 | T56: 37369.97 | W56: =T56/J56*100 -> 108.3187536
A57: Доходы от оказания платных услуг (работ) | B57: 000 1130100000 0000 130 | C57: 5500 | E57: 5500 | J57: 5500 | M57: 6324.4 | O57: 6324.4 | T57: 6324.4 | W57: =T57/J57*100 -> 114.9890909
A58: Прочие доходы от оказания платных услуг (работ) | B58: 000 1130199000 0000 130 | C58: 5500 | E58: 5500 | J58: 5500 | M58: 6324.4 | O58: 6324.4 | T58: 6324.4 | W58: =T58/J58*100 -> 114.9890909
A59: Прочие доходы от оказания платных услуг (работ) получателями средств бюджетов муниципальных районов | B59: 000 1130199505 0000 130 | C59: 5500 | E59: 5500 | J59: 5500 | M59: 6324.4 | O59: 6324.4 | T59: 6324.4 | W59: =T59/J59*100 -> 114.9890909
A60: Доходы от компенсации затрат государства | B60: 000 1130200000 0000 130 | C60: 29000 | E60: 29000 | J60: 29000 | M60: 31045.57 | O60: 31045.57 | T60: 31045.57 | W60: =T60/J60*100 -> 107.0536897
A61: Прочие доходы от компенсации затрат государства | B61: 000 1130299000 0000 130 | C61: 29000 | E61: 29000 | J61: 29000 | M61: 31045.57 | O61: 31045.57 | T61: 31045.57 | W61: =T61/J61*100 -> 107.0536897
A62: Прочие доходы от компенсации затрат бюджетов муниципальных районов | B62: 000 1130299505 0000 130 | C62: 29000 | E62: 29000 | J62: 29000 | M62: 31045.57 | O62: 31045.57 | T62: 31045.57 | W62: =T62/J62*100 -> 107.0536897
A63: ДОХОДЫ ОТ ПРОДАЖИ МАТЕРИАЛЬНЫХ И НЕМАТЕРИАЛЬНЫХ АКТИВОВ | B63: 000 1140000000 0000 000 | C63: 2771000 | E63: 2771000 | J63: 2771000 | M63: 2857179.9 | O63: 2857179.9 | T63: 2857179.9 | W63: =T63/J63*100 -> 103.110065
A64: Доходы от реализации имущества, находящегося в государственной и муниципальной собственности (за исключением имущества бюджетных и автономных учреждений, а также имущества государственных и муниципальных унитарных предприятий, в том числе казенных) | B64: 000 1140200000 0000 000 | C64: 2361000 | E64: 2361000 | J64: 2361000 | M64: 2413959.7 | O64: 2413959.7 | T64: 2413959.7 | W64: =T64/J64*100 -> 102.2431046
A65: Доходы от реализации имущества, находящегося в собственности муниципальных районов (за исключением имущества муниципальных бюджетных и автономных учреждений, а также имущества муниципальных унитарных предприятий, в том числе казенных), в части реализации основных средств по указанному имуществу | B65: 000 1140205005 0000 410 | C65: 2361000 | E65: 2361000 | J65: 2361000 | M65: 2413959.7 | O65: 2413959.7 | T65: 2413959.7 | W65: =T65/J65*100 -> 102.2431046
A66: Доходы от реализации иного имущества, находящегося в собственности муниципальных районов (за исключением имущества муниципальных бюджетных и автономных учреждений, а также имущества муниципальных унитарных предприятий, в том числе казенных), в части реализации основных средств по указанному имуществу | B66: 000 1140205305 0000 410 | C66: 2361000 | E66: 2361000 | J66: 2361000 | M66: 2413959.7 | O66: 2413959.7 | T66: 2413959.7 | W66: =T66/J66*100 -> 102.2431046
A67: Доходы от продажи земельных участков, находящихся в государственной и муниципальной собственности (за исключением земельных участков бюджетных и автономных учреждений) | B67: 000 1140600000 0000 430 | C67: 410000 | E67: 410000 | J67: 410000 | M67: 443220.2 | O67: 443220.2 | T67: 443220.2 | W67: =T67/J67*100 -> 108.1024878
A68: Доходы от продажи земельных участков, государственная собственность на которые не разграничена | B68: 000 1140601000 0000 430 | C68: 410000 | E68: 410000 | J68: 410000 | M68: 443220.2 | O68: 443220.2 | T68: 443220.2 | W68: =T68/J68*100 -> 108.1024878
A69: Доходы от продажи земельных участков, государственная собственность на которые не разграничена и которые расположены в границах поселений | B69: 000 1140601310 0000 430 | C69: 410000 | E69: 410000 | J69: 410000 | M69: 443220.2 | O69: 443220.2 | T69: 443220.2 | W69: =T69/J69*100 -> 108.1024878
A70: ШТРАФЫ, САНКЦИИ, ВОЗМЕЩЕНИЕ УЩЕРБА | B70: 000 1160000000 0000 000 | C70: 880000 | E70: 880000 | J70: 880000 | M70: 1066176.36 | O70: 1066176.36 | T70: 1066176.36 | W70: =T70/J70*100 -> 121.1564045
A71: Денежные взыскания (штрафы) за нарушение законодательства о налогах и сборах | B71: 000 1160300000 0000 140 | C71: 48000 | E71: 48000 | J71: 48000 | M71: 57602.81 | O71: 57602.81 | T71: 57602.81 | W71: =T71/J71*100 -> 120.0058542
A72: Денежные взыскания (штрафы) за нарушение законодательства о налогах и сборах, предусмотренные статьями 116, 118, 1191, пунктами 1 и 2 статьи 120, статьями 125, 126, 128, 129, 1291, 132, 133, 134, 135, 1351 Налогового кодекса Российской Федерации, а также штрафы, взыскание которых осуществляется на основании ранее действовавшей статьи 117 Налогового кодекса Российской Федерации | B72: 000 1160301001 0000 140 | C72: 40000 | E72: 40000 | J72: 40000 | M72: 49452.81 | O72: 49452.81 | T72: 49452.81 | W72: =T72/J72*100 -> 123.632025
A73: Денежные взыскания (штрафы) за административные правонарушения в области налогов и сборов, предусмотренные Кодексом Российской Федерации об административных правонарушениях | B73: 000 1160303001 0000 140 | C73: 8000 | E73: 8000 | J73: 8000 | M73: 8150 | O73: 8150 | T73: 8150 | W73: =T73/J73*100 -> 101.875
A74: Денежные взыскания (штрафы) за нарушение законодательства о применении контрольно-кассовой техники при осуществлении наличных денежных расчетов и (или) расчетов с использованием платежных карт | B74: 000 1160600001 0000 140 | C74: 14000 | E74: 14000 | J74: 14000 | M74: 14000 | O74: 14000 | T74: 14000 | W74: =T74/J74*100 -> 100
A75: Денежные взыскания (штрафы) и иные суммы, взыскиваемые с лиц, виновных в совершении преступлений, и в возмещение ущерба имуществу | B75: 000 1162100000 0000 140 | C75: 5000 | E75: 5000 | J75: 5000 | M75: 5000 | O75: 5000 | T75: 5000 | W75: =T75/J75*100 -> 100
A76: Денежные взыскания (штрафы) и иные суммы, взыскиваемые с лиц, виновных в совершении преступлений, и в возмещение ущерба имуществу, зачисляемые в бюджеты муниципальных районов | B76: 000 1162105005 0000 140 | C76: 5000 | E76: 5000 | J76: 5000 | M76: 5000 | O76: 5000 | T76: 5000 | W76: =T76/J76*100 -> 100
A77: Денежные взыскания (штрафы) за нарушение законодательства Российской Федерации о недрах, об особо охраняемых природных территориях, об охране и использовании животного мира, об экологической экспертизе, в области охраны окружающей среды, земельного законодательства, лесного законодательства, водного законодательства | B77: 000 1162500000 0000 140 | C77: 85000 | E77: 85000 | J77: 85000 | M77: 202600 | O77: 202600 | T77: 202600 | W77: =T77/J77*100 -> 238.3529412
A78: Денежные взыскания (штрафы) за нарушение законодательства Российской Федерации о недрах | B78: 000 1162501001 0000 140 | C78: 5000 | E78: 5000 | J78: 5000 | M78: 5000 | O78: 5000 | T78: 5000 | W78: =T78/J78*100 -> 100
A79: Денежные взыскания (штрафы) за нарушение законодательства в области охраны окружающей среды | B79: 000 1162505001 0000 140 | C79: 30000 | E79: 30000 | J79: 30000 | M79: 74000 | O79: 74000 | T79: 74000 | W79: =T79/J79*100 -> 246.6666667
A80: Денежные взыскания (штрафы) за нарушение земельного законодательства | B80: 000 1162506001 0000 140 | C80: 50000 | E80: 50000 | J80: 50000 | M80: 123600 | O80: 123600 | T80: 123600 | W80: =T80/J80*100 -> 247.2
A81: Денежные взыскания (штрафы) за нарушение законодательства в области обеспечения санитарно-эпидемиологического благополучия человека и законодательства в сфере защиты прав потребителей | B81: 000 1162800001 0000 140 | C81: 900 | E81: 900 | J81: 900 | M81: 970 | O81: 970 | T81: 970 | W81: =T81/J81*100 -> 107.7777778
A82: Денежные взыскания (штрафы) за нарушение законодательства Российской Федерации о размещении заказов на поставки товаров, выполнение работ, оказание услуг | B82: 000 1163300000 0000 140 | C82: 10000 | E82: 10000 | J82: 10000 | M82: 30000 | O82: 30000 | T82: 30000 | W82: =T82/J82*100 -> 300
A83: Денежные взыскания (штрафы) за нарушение законодательства Российской Федерации о размещении заказов на поставки товаров, выполнение работ, оказание услуг для нужд муниципальных районов | B83: 000 1163305005 0000 140 | C83: 10000 | E83: 10000 | J83: 10000 | M83: 30000 | O83: 30000 | T83: 30000 | W83: =T83/J83*100 -> 300
A84: Денежные взыскания (штрафы) за нарушение законодательства Российской Федерации об административных правонарушениях, предусмотренные статьей 20.25 Кодекса Российской Федерации об административных правонарушениях | B84: 000 1164300001 0000 140 | C84: 50000 | E84: 50000 | J84: 50000 | M84: 55600 | O84: 55600 | T84: 55600 | W84: =T84/J84*100 -> 111.2
A85: Прочие поступления от денежных взысканий (штрафов) и иных сумм в возмещение ущерба | B85: 000 1169000000 0000 140 | C85: 667100 | E85: 667100 | J85: 667100 | M85: 700403.55 | O85: 700403.55 | T85: 700403.55 | W85: =T85/J85*100 -> 104.9922875
A86: Прочие поступления от денежных взысканий (штрафов) и иных сумм в возмещение ущерба, зачисляемые в бюджеты муниципальных районов | B86: 000 1169005005 0000 140 | C86: 667100 | E86: 667100 | J86: 667100 | M86: 700403.55 | O86: 700403.55 | T86: 700403.55 | W86: =T86/J86*100 -> 104.9922875
A87: ПРОЧИЕ НЕНАЛОГОВЫЕ ДОХОДЫ | B87: 000 1170000000 0000 000 | M87: 5553.55 | O87: 5553.55 | T87: 5553.55 | W87: =T87/J87*100 -> 
A88: Невыясненные поступления | B88: 000 1170100000 0000 180 | M88: 5553.55 | O88: 5553.55 | T88: 5553.55 | W88: =T88/J88*100 -> 
A89: Невыясненные поступления, зачисляемые в бюджеты муниципальных районов | B89: 000 1170105005 0000 180 | M89: 5553.55 | O89: 5553.55 | T89: 5553.55 | W89: =T89/J89*100 -> 
A90: БЕЗВОЗМЕЗДНЫЕ ПОСТУПЛЕНИЯ | B90: 000 2000000000 0000 000 | F90: 170664855 | J90: 170664855 | M90: 118000 | O90: 118000 | P90: 169696993.3 | T90: 169814993.3 | W90: =T90/J90*100 -> 99.50202886
A91: БЕЗВОЗМЕЗДНЫЕ ПОСТУПЛЕНИЯ ОТ ДРУГИХ БЮДЖЕТОВ БЮДЖЕТНОЙ СИСТЕМЫ РОССИЙСКОЙ ФЕДЕРАЦИИ | B91: 000 2020000000 0000 000 | F91: 170664855 | J91: 170664855 | P91: 170378642.4 | T91: 170378642.4 | W91: =T91/J91*100 -> 99.83229554
A92: Дотации бюджетам субъектов Российской Федерации и муниципальных образований | B92: 000 2020100000 0000 151 | F92: 22003000 | J92: 22003000 | P92: 22003000 | T92: 22003000 | W92: =T92/J92*100 -> 100
A93: Дотации на выравнивание бюджетной обеспеченности | B93: 000 2020100100 0000 151 | F93: 22003000 | J93: 22003000 | P93: 22003000 | T93: 22003000 | W93: =T93/J93*100 -> 100
A94: Дотации бюджетам муниципальных районов на выравнивание бюджетной обеспеченности | B94: 000 2020100105 0000 151 | F94: 22003000 | J94: 22003000 | P94: 22003000 | T94: 22003000 | W94: =T94/J94*100 -> 100
A95: Субсидии бюджетам субъектов Российской Федерации и муниципальных образований (межбюджетные субсидии) | B95: 000 2020200000 0000 151 | F95: 52068706.17 | J95: 52068706.17 | P95: 52068706.17 | T95: 52068706.17 | W95: =T95/J95*100 -> 100
A96: Субсидии бюджетам на реализацию мероприятий, предусмотренных региональной программой переселения, включенной в Государственную программу по оказанию содействия добровольному переселению в Российскую Федерацию соотечественников, проживающих за рубежом | B96: 000 2020204600 0000 151 | F96: 2290200 | J96: 2290200 | P96: 2290200 | T96: 2290200 | W96: =T96/J96*100 -> 100
A97: Субсидии бюджетам муниципальных районов на реализацию мероприятий, предусмотренных региональной программой переселения, включенной в Государственную программу по оказанию содействия добровольному переселению в Российскую Федерацию соотечественников, проживающих за рубежом | B97: 000 2020204605 0000 151 | F97: 2290200 | J97: 2290200 | P97: 2290200 | T97: 2290200 | W97: =T97/J97*100 -> 100
A98: Субсидии бюджетам на реализацию федеральных целевых программ | B98: 000 2020205100 0000 151 | F98: 636012 | J98: 636012 | P98: 636012 | T98: 636012 | W98: =T98/J98*100 -> 100
A99: Субсидии бюджетам муниципальных районов на реализацию федеральных целевых программ | B99: 000 2020205105 0000 151 | F99: 636012 | J99: 636012 | P99: 636012 | T99: 636012 | W99: =T99/J99*100 -> 100
A100: Субсидии бюджетам на модернизацию региональных систем общего образования | B100: 000 2020214500 0000 151 | F100: 6140800 | J100: 6140800 | P100: 6140800 | T100: 6140800 | W100: =T100/J100*100 -> 100
A101: Субсидии бюджетам муниципальных районов на модернизацию региональных систем общего образования | B101: 000 2020214505 0000 151 | F101: 6140800 | J101: 6140800 | P101: 6140800 | T101: 6140800 | W101: =T101/J101*100 -> 100
A102: Субсидии бюджетам на реализацию программы энергосбережения и повышения энергетической эффективности на период до 2020 года | B102: 000 2020215000 0000 151 | F102: 235743.07 | J102: 235743.07 | P102: 235743.07 | T102: 235743.07 | W102: =T102/J102*100 -> 100
A103: Субсидии бюджетам муниципальных районов на реализацию программы энергосбережения и повышения энергетической эффективности на период до 2020 года | B103: 000 2020215005 0000 151 | F103: 235743.07 | J103: 235743.07 | P103: 235743.07 | T103: 235743.07 | W103: =T103/J103*100 -> 100
A104: Прочие субсидии | B104: 000 2020299900 0000 151 | F104: 42765951.1 | J104: 42765951.1 | P104: 42765951.1 | T104: 42765951.1 | W104: =T104/J104*100 -> 100
A105: Прочие субсидии бюджетам муниципальных районов | B105: 000 2020299905 0000 151 | F105: 42765951.1 | J105: 42765951.1 | P105: 42765951.1 | T105: 42765951.1 | W105: =T105/J105*100 -> 100
A106: Субвенции бюджетам субъектов Российской Федерации и муниципальных образований | B106: 000 2020300000 0000 151 | F106: 69810900 | J106: 69810900 | P106: 69524700 | T106: 69524700 | W106: =T106/J106*100 -> 99.59003537
A107: Субвенции бюджетам на государственную регистрацию актов гражданского состояния | B107: 000 2020300300 0000 151 | F107: 878400 | J107: 878400 | P107: 878400 | T107: 878400 | W107: =T107/J107*100 -> 100
A108: Субвенции бюджетам муниципальных районов на государственную регистрацию актов гражданского состояния | B108: 000 2020300305 0000 151 | F108: 878400 | J108: 878400 | P108: 878400 | T108: 878400 | W108: =T108/J108*100 -> 100
A109: Субвенции бюджетам на составление (изменение) списков кандидатов в присяжные заседатели федеральных судов общей юрисдикции в Российской Федерации | B109: 000 2020300700 0000 151 | F109: 23400 | J109: 23400 | P109: 19400 | T109: 19400 | W109: =T109/J109*100 -> 82.90598291
A110: Субвенции бюджетам муниципальных районов на составление (изменение) списков кандидатов в присяжные заседатели федеральных судов общей юрисдикции в Российской Федерации | B110: 000 2020300705 0000 151 | F110: 23400 | J110: 23400 | P110: 19400 | T110: 19400 | W110: =T110/J110*100 -> 82.90598291
A111: Субвенции бюджетам на осуществление первичного воинского учета на территориях, где отсутствуют военные комиссариаты | B111: 000 2020301500 0000 151 | F111: 676900 | J111: 676900 | P111: 676900 | T111: 676900 | W111: =T111/J111*100 -> 100
A112: Субвенции бюджетам муниципальных районов на осуществление первичного воинского учета на территориях, где отсутствуют военные комиссариаты | B112: 000 2020301505 0000 151 | F112: 676900 | J112: 676900 | P112: 676900 | T112: 676900 | W112: =T112/J112*100 -> 100
A113: Субвенции бюджетам муниципальных образований на ежемесячное денежное вознаграждение за классное руководство | B113: 000 2020302100 0000 151 | F113: 1530000 | J113: 1530000 | P113: 1460000 | T113: 1460000 | W113: =T113/J113*100 -> 95.4248366
A114: Субвенции бюджетам муниципальных районов на ежемесячное денежное вознаграждение за классное руководство | B114: 000 2020302105 0000 151 | F114: 1530000 | J114: 1530000 | P114: 1460000 | T114: 1460000 | W114: =T114/J114*100 -> 95.4248366
A115: Субвенции местным бюджетам на выполнение передаваемых полномочий субъектов Российской Федерации | B115: 000 2020302400 0000 151 | F115: 66702200 | J115: 66702200 | P115: 66490000 | T115: 66490000 | W115: =T115/J115*100 -> 99.68186956
A116: Субвенции бюджетам муниципальных районов на выполнение передаваемых полномочий субъектов Российской Федерации | B116: 000 2020302405 0000 151 | F116: 66702200 | J116: 66702200 | P116: 66490000 | T116: 66490000 | W116: =T116/J116*100 -> 99.68186956
A117: Иные межбюджетные трансферты | B117: 000 2020400000 0000 151 | F117: 26782248.86 | J117: 26782248.86 | P117: 26782236.28 | T117: 26782236.28 | W117: =T117/J117*100 -> 99.99995303
A118: Межбюджетные трансферты, передаваемые бюджетам муниципальных образований на осуществление части полномочий по решению вопросов местного значения в соответствии с заключенными соглашениями | B118: 000 2020401400 0000 151 | F118: 23751248.86 | J118: 23751248.86 | P118: 23751248.86 | T118: 23751248.86 | W118: =T118/J118*100 -> 100
A119: Межбюджетные трансферты, передаваемые бюджетам муниципальных районов из бюджетов поселений на осуществление части полномочий по решению вопросов местного значения в соответствии с заключенными соглашениями | B119: 000 2020401405 0000 151 | F119: 23751248.86 | J119: 23751248.86 | P119: 23751248.86 | T119: 23751248.86 | W119: =T119/J119*100 -> 100
A120: Межбюджетные трансферты, передаваемые бюджетам на комплектование книжных фондов библиотек муниципальных образований и государственных библиотек городов Москвы и Санкт-Петербурга | B120: 000 2020402500 0000 151 | F120: 38500 | J120: 38500 | P120: 38500 | T120: 38500 | W120: =T120/J120*100 -> 100
A121: Межбюджетные трансферты, передаваемые бюджетам муниципальных районов на комплектование книжных фондов библиотек муниципальных образований | B121: 000 2020402505 0000 151 | F121: 38500 | J121: 38500 | P121: 38500 | T121: 38500 | W121: =T121/J121*100 -> 100
A122: Межбюджетные трансферты, передаваемые бюджетам на подключение общедоступных библиотек Российской Федерации к сети Интернет и развитие системы библиотечного дела с учетом задачи расширения информационных технологий и оцифровки | B122: 000 2020404100 0000 151 | P122: 35700 | T122: 35700
A123: Межбюджетные трансферты, передаваемые бюджетам муниципальных районов, на подключение общедоступных библиотек Российской Федерации к сети Интернет и развитие системы библиотечного дела с учетом задачи расширения информационных технологий и оцифровки | B123: 000 2020404105 0000 151 | P123: 35700 | T123: 35700
A124: Прочие межбюджетные трансферты, передаваемые бюджетам | B124: 000 2020499900 0000 151 | F124: 2992500 | J124: 2992500 | P124: 2956787.42 | T124: 2956787.42 | W124: =T124/J124*100 -> 98.80659716
A125: Прочие межбюджетные трансферты, передаваемые бюджетам муниципальных районов | B125: 000 2020499905 0000 151 | F125: 2992500 | J125: 2992500 | P125: 2956787.42 | T125: 2956787.42 | W125: =T125/J125*100 -> 98.80659716
A126: ПРОЧИЕ БЕЗВОЗМЕЗДНЫЕ ПОСТУПЛЕНИЯ | B126: 000 2070000000 0000 180 | M126: 118000 | O126: 118000 | T126: 118000
A127: Прочие безвозмездные поступления в бюджеты муниципальных районов | B127: 000 2070500005 0000 180 | M127: 118000 | O127: 118000 | T127: 118000
A128: ВОЗВРАТ ОСТАТКОВ СУБСИДИЙ, СУБВЕНЦИЙ И ИНЫХ МЕЖБЮДЖЕТНЫХ ТРАНСФЕРТОВ, ИМЕЮЩИХ ЦЕЛЕВОЕ НАЗНАЧЕНИЕ, ПРОШЛЫХ ЛЕТ | B128: 000 2190000000 0000 000 | P128: -681649.15 | T128: -681649.15
A129: Возврат остатков субсидий, субвенций и иных межбюджетных трансфертов, имеющих целевое назначение, прошлых лет из бюджетов муниципальных районов | B129: 000 2190500005 0000 151 | P129: -681649.15 | T129: -681649.15

Sheet Расходы
A2: 2. Расходы бюджета | U2: Форма 0503317 с.2
D4: суммы подлежащие исключению в рамках консолидированного бюджета субъекта Российской Федерации и бюджета территориального государственного внебюджетного фонда | F4: суммы подлежащие исключению в рамках консолидированного бюджета субъекта Российской Федерации | J4: Утвержденные бюджетные назначения на 2012 год | N4: суммы подлежащие исключению в рамках консолидированного бюджета субъекта Российской Федерации и бюджета территориального государственного внебюджетного фонда | P4: суммы подлежащие исключению в рамках консолидированного бюджета субъекта Российской Федерации | T4: Исполнено за 2012 год | W4: % исполнения
A5: 1 | B5: 2 | C5: 4 | D5: 5 | E5: 6 | F5: 7 | G5: 8 | H5: 9 | I5: 10 | J5: 3 | K5: 12 | L5: 13 | M5: 14 | N5: 15 | O5: 16 | P5: 17 | Q5: 18 | R5: 19 | S5: 20 | T5: 4 | U5: 22 | V5: 23 | W5: 5
A6: Расходы бюджета - ИТОГО | B6: х | C6: 226411888.3 | E6: 226411888.3 | F6: 10682694 | J6: 237094582.3 | M6: 222714715.1 | O6: 222714715.1 | P6: 10682694 | T6: 233397409.1 | W6: =T6/J6*100 -> 98.4406336
A7: в том числе:
A8: Общегосударственные вопросы | B8: 000 0100 0000000 000 000 | C8: 47646722.84 | E8: 47646722.84 | J8: 47646722.84 | M8: 45863480.12 | O8: 45863480.12 | T8: 45863480.12 | W8: =T8/J8*100 -> 96.25736543
A9: Расходы | B9: 000 0100 0000000 000 200 | C9: 42626344.2 | E9: 42626344.2 | J9: 42626344.2 | M9: 42481679.38 | O9: 42481679.38 | T9: 42481679.38 | W9: =T9/J9*100 -> 99.6606211
A10: Оплата труда и начисления на выплаты по оплате труда | B10: 000 0100 0000000 000 210 | C10: 37462410.42 | E10: 37462410.42 | J10: 37462410.42 | M10: 37452980.51 | O10: 37452980.51 | T10: 37452980.51 | W10: =T10/J10*100 -> 99.97482834
A11: Заработная плата | B11: 000 0100 0000000 000 211 | C11: 27526793.7 | E11: 27526793.7 | J11: 27526793.7 | M11: 27520516.09 | O11: 27520516.09 | T11: 27520516.09 | W11: =T11/J11*100 -> 99.97719455
A12: Прочие выплаты | B12: 000 0100 0000000 000 212 | C12: 1718087 | E12: 1718087 | J12: 1718087 | M12: 1717629 | O12: 1717629 | T12: 1717629 | W12: =T12/J12*100 -> 99.97334244
A13: Начисления на выплаты по оплате труда | B13: 000 0100 0000000 000 213 | C13: 8217529.72 | E13: 8217529.72 | J13: 8217529.72 | M13: 8214835.42 | O13: 8214835.42 | T13: 8214835.42 | W13: =T13/J13*100 -> 99.96721277
A14: Оплата работ, услуг | B14: 000 0100 0000000 000 220 | C14: 4706211.78 | E14: 4706211.78 | J14: 4706211.78 | M14: 4651345.32 | O14: 4651345.32 | T14: 4651345.32 | W14: =T14/J14*100 -> 98.83416934
A15: Услуги связи | B15: 000 0100 0000000 000 221 | C15: 765004.15 | E15: 765004.15 | J15: 765004.15 | M15: 743561.6 | O15: 743561.6 | T15: 743561.6 | W15: =T15/J15*100 -> 97.19706749
A16: Транспортные услуги | B16: 000 0100 0000000 000 222 | C16: 6358 | E16: 6358 | J16: 6358 | M16: 6358 | O16: 6358 | T16: 6358 | W16: =T16/J16*100 -> 100
A17: Коммунальные услуги | B17: 000 0100 0000000 000 223 | C17: 1638649.98 | E17: 1638649.98 | J17: 1638649.98 | M17: 1638266.61 | O17: 1638266.61 | T17: 1638266.61 | W17: =T17/J17*100 -> 99.97660452
A18: Работы, услуги по содержанию имущества | B18: 000 0100 0000000 000 225 | C18: 1037660 | E18: 1037660 | J18: 1037660 | M18: 1037569 | O18: 1037569 | T18: 1037569 | W18: =T18/J18*100 -> 99.99123027
A19: Прочие работы, услуги | B19: 000 0100 0000000 000 226 | C19: 1258539.65 | E19: 1258539.65 | J19: 1258539.65 | M19: 1225590.11 | O19: 1225590.11 | T19: 1225590.11 | W19: =T19/J19*100 -> 97.38192277
A20: Социальное обеспечение | B20: 000 0100 0000000 000 260 | C20: 1000 | E20: 1000 | J20: 1000 | W20: =T20/J20*100 -> 0
A21: Пособия по социальной помощи населению | B21: 000 0100 0000000 000 262 | C21: 1000 | E21: 1000 | J21: 1000 | W21: =T21/J21*100 -> 0
A22: Прочие расходы | B22: 000 0100 0000000 000 290 | C22: 456722 | E22: 456722 | J22: 456722 | M22: 377353.55 | O22: 377353.55 | T22: 377353.55 | W22: =T22/J22*100 -> 82.62215308
A23: Поступление нефинансовых активов | B23: 000 0100 0000000 000 300 | C23: 5020378.64 | E23: 5020378.64 | J23: 5020378.64 | M23: 3381800.74 | O23: 3381800.74 | T23: 3381800.74 | W23: =T23/J23*100 -> 67.36146778
A24: Увеличение стоимости основных средств | B24: 000 0100 0000000 000 310 | C24: 3492044.5 | E24: 3492044.5 | J24: 3492044.5 | M24: 1858465.5 | O24: 1858465.5 | T24: 1858465.5 | W24: =T24/J24*100 -> 53.21998331
A25: Увеличение стоимости материальных запасов | B25: 000 0100 0000000 000 340 | C25: 1528334.14 | E25: 1528334.14 | J25: 1528334.14 | M25: 1523335.24 | O25: 1523335.24 | T25: 1523335.24 | W25: =T25/J25*100 -> 99.67291838
A26: Функционирование высшего должностного лица субъекта Российской Федерации и муниципального образования | B26: 000 0102 0000000 000 000 | C26: 906000 | E26: 906000 | J26: 906000 | M26: 905938.9 | O26: 905938.9 | T26: 905938.9 | W26: =T26/J26*100 -> 99.99325607
A27: Расходы | B27: 000 0102 0000000 000 200 | C27: 906000 | E27: 906000 | J27: 906000 | M27: 905938.9 | O27: 905938.9 | T27: 905938.9 | W27: =T27/J27*100 -> 99.99325607
A28: Оплата труда и начисления на выплаты по оплате труда | B28: 000 0102 0000000 000 210 | C28: 906000 | E28: 906000 | J28: 906000 | M28: 905938.9 | O28: 905938.9 | T28: 905938.9 | W28: =T28/J28*100 -> 99.99325607
A29: Заработная плата | B29: 000 0102 0000000 000 211 | C29: 640400 | E29: 640400 | J29: 640400 | M29: 640379 | O29: 640379 | T29: 640379 | W29: =T29/J29*100 -> 99.9967208
A30: Прочие выплаты | B30: 000 0102 0000000 000 212 | C30: 98500 | E30: 98500 | J30: 98500 | M30: 98498 | O30: 98498 | T30: 98498 | W30: =T30/J30*100 -> 99.99796954
A31: Начисления на выплаты по оплате труда | B31: 000 0102 0000000 000 213 | C31: 167100 | E31: 167100 | J31: 167100 | M31: 167061.9 | O31: 167061.9 | T31: 167061.9 | W31: =T31/J31*100 -> 99.97719928
A32: Функционирование законодательных (представительных) органов государственной власти и представительных органов муниципальных образований | B32: 000 0103 0000000 000 000 | C32: 2098700 | E32: 2098700 | J32: 2098700 | M32: 2096149.55 | O32: 2096149.55 | T32: 2096149.55 | W32: =T32/J32*100 -> 99.87847477
A33: Расходы | B33: 000 0103 0000000 000 200 | C33: 2073700 | E33: 2073700 | J33: 2073700 | M33: 2071149.55 | O33: 2071149.55 | T33: 2071149.55 | W33: =T33/J33*100 -> 99.87700969
A34: Оплата труда и начисления на выплаты по оплате труда | B34: 000 0103 0000000 000 210 | C34: 2069700 | E34: 2069700 | J34: 2069700 | M34: 2068435.54 | O34: 2068435.54 | T34: 2068435.54 | W34: =T34/J34*100 -> 99.93890612
A35: Заработная плата | B35: 000 0103 0000000 000 211 | C35: 1404500 | E35: 1404500 | J35: 1404500 | M35: 1404282.54 | O35: 1404282.54 | T35: 1404282.54 | W35: =T35/J35*100 -> 99.98451691
A36: Прочие выплаты | B36: 000 0103 0000000 000 212 | C36: 288800 | E36: 288800 | J36: 288800 | M36: 288673 | O36: 288673 | T36: 288673 | W36: =T36/J36*100 -> 99.95602493
A37: Начисления на выплаты по оплате труда | B37: 000 0103 0000000 000 213 | C37: 376400 | E37: 376400 | J37: 376400 | M37: 375480 | O37: 375480 | T37: 375480 | W37: =T37/J37*100 -> 99.75557917
A38: Прочие расходы | B38: 000 0103 0000000 000 290 | C38: 4000 | E38: 4000 | J38: 4000 | M38: 2714.01 | O38: 2714.01 | T38: 2714.01 | W38: =T38/J38*100 -> 67.85025
A39: Поступление нефинансовых активов | B39: 000 0103 0000000 000 300 | C39: 25000 | E39: 25000 | J39: 25000 | M39: 25000 | O39: 25000 | T39: 25000 | W39: =T39/J39*100 -> 100
A40: Увеличение стоимости материальных запасов | B40: 000 0103 0000000 000 340 | C40: 25000 | E40: 25000 | J40: 25000 | M40: 25000 | O40: 25000 | T40: 25000 | W40: =T40/J40*100 -> 100
A41: Функционирование Правительства Российской Федерации, высших исполнительных органов государственной власти субъектов Российской Федерации, местных администраций | B41: 000 0104 0000000 000 000 | C41: 11265912 | E41: 11265912 | J41: 11265912 | M41: 11242234.83 | O41: 11242234.83 | T41: 11242234.83 | W41: =T41/J41*100 -> 99.78983353
A42: Расходы | B42: 000 0104 0000000 000 200 | C42: 11155195.45 | E42: 11155195.45 | J42: 11155195.45 | M42: 11131518.28 | O42: 11131518.28 | T42: 11131518.28 | W42: =T42/J42*100 -> 99.7877476
A43: Оплата труда и начисления на выплаты по оплате труда | B43: 000 0104 0000000 000 210 | C43: 10398667 | E43: 10398667 | J43: 10398667 | M43: 10398323.96 | O43: 10398323.96 | T43: 10398323.96 | W43: =T43/J43*100 -> 99.99670112
A44: Заработная плата | B44: 000 0104 0000000 000 211 | C44: 7263000 | E44: 7263000 | J44: 7263000 | M44: 7262849.21 | O44: 7262849.21 | T44: 7262849.21 | W44: =T44/J44*100 -> 99.99792386
A45: Прочие выплаты | B45: 000 0104 0000000 000 212 | C45: 1001767 | E45: 1001767 | J45: 1001767 | M45: 1001706 | O45: 1001706 | T45: 1001706 | W45: =T45/J45*100 -> 99.99391076
A46: Начисления на выплаты по оплате труда | B46: 000 0104 0000000 000 213 | C46: 2133900 | E46: 2133900 | J46: 2133900 | M46: 2133768.75 | O46: 2133768.75 | T46: 2133768.75 | W46: =T46/J46*100 -> 99.99384929
A47: Оплата работ, услуг | B47: 000 0104 0000000 000 220 | C47: 694678.45 | E47: 694678.45 | J47: 694678.45 | M47: 671391.61 | O47: 671391.61 | T47: 671391.61 | W47: =T47/J47*100 -> 96.64782462
A48: Работы, услуги по содержанию имущества | B48: 000 0104 0000000 000 225 | C48: 99800 | E48: 99800 | J48: 99800 | M48: 99800 | O48: 99800 | T48: 99800 | W48: =T48/J48*100 -> 100
A49: Прочие работы, услуги | B49: 000 0104 0000000 000 226 | C49: 594878.45 | E49: 594878.45 | J49: 594878.45 | M49: 571591.61 | O49: 571591.61 | T49: 571591.61 | W49: =T49/J49*100 -> 96.08544569
A50: Прочие расходы | B50: 000 0104 0000000 000 290 | C50: 61850 | E50: 61850 | J50: 61850 | M50: 61802.71 | O50: 61802.71 | T50: 61802.71 | W50: =T50/J50*100 -> 99.92354082
A51: Поступление нефинансовых активов | B51: 000 0104 0000000 000 300 | C51: 110716.55 | E51: 110716.55 | J51: 110716.55 | M51: 110716.55 | O51: 110716.55 | T51: 110716.55 | W51: =T51/J51*100 -> 100
A52: Увеличение стоимости основных средств | B52: 000 0104 0000000 000 310 | C52: 5582.5 | E52: 5582.5 | J52: 5582.5 | M52: 5582.5 | O52: 5582.5 | T52: 5582.5 | W52: =T52/J52*100 -> 100
A53: Увеличение стоимости материальных запасов | B53: 000 0104 0000000 000 340 | C53: 105134.05 | E53: 105134.05 | J53: 105134.05 | M53: 105134.05 | O53: 105134.05 | T53: 105134.05 | W53: =T53/J53*100 -> 100
A54: Судебная система | B54: 000 0105 0000000 000 000 | C54: 23400 | E54: 23400 | J54: 23400 | M54: 19400 | O54: 19400 | T54: 19400 | W54: =T54/J54*100 -> 82.90598291
A55: Расходы | B55: 000 0105 0000000 000 200 | C55: 15728.05 | E55: 15728.05 | J55: 15728.05 | M55: 11728.05 | O55: 11728.05 | T55: 11728.05 | W55: =T55/J55*100 -> 74.5677309
A56: Оплата работ, услуг | B56: 000 0105 0000000 000 220 | C56: 15728.05 | E56: 15728.05 | J56: 15728.05 | M56: 11728.05 | O56: 11728.05 | T56: 11728.05 | W56: =T56/J56*100 -> 74.5677309
A57: Услуги связи | B57: 000 0105 0000000 000 221 | C57: 4356 | E57: 4356 | J57: 4356 | M57: 4356 | O57: 4356 | T57: 4356 | W57: =T57/J57*100 -> 100
A58: Прочие работы, услуги | B58: 000 0105 0000000 000 226 | C58: 11372.05 | E58: 11372.05 | J58: 11372.05 | M58: 7372.05 | O58: 7372.05 | T58: 7372.05 | W58: =T58/J58*100 -> 64.8260428
A59: Поступление нефинансовых активов | B59: 000 0105 0000000 000 300 | C59: 7671.95 | E59: 7671.95 | J59: 7671.95 | M59: 7671.95 | O59: 7671.95 | T59: 7671.95 | W59: =T59/J59*100 -> 100
A60: Увеличение стоимости материальных запасов | B60: 000 0105 0000000 000 340 | C60: 7671.95 | E60: 7671.95 | J60: 7671.95 | M60: 7671.95 | O60: 7671.95 | T60: 7671.95 | W60: =T60/J60*100 -> 100
A61: Обеспечение деятельности финансовых, налоговых и таможенных органов и органов финансового (финансово-бюджетного) надзора | B61: 000 0106 0000000 000 000 | C61: 2917000 | E61: 2917000 | J61: 2917000 | M61: 2916123.7 | O61: 2916123.7 | T61: 2916123.7 | W61: =T61/J61*100 -> 99.96995886
A62: Расходы | B62: 000 0106 0000000 000 200 | C62: 2843130 | E62: 2843130 | J62: 2843130 | M62: 2842253.7 | O62: 2842253.7 | T62: 2842253.7 | W62: =T62/J62*100 -> 99.96917834
A63: Оплата труда и начисления на выплаты по оплате труда | B63: 000 0106 0000000 000 210 | C63: 2810500 | E63: 2810500 | J63: 2810500 | M63: 2809624.5 | O63: 2809624.5 | T63: 2809624.5 | W63: =T63/J63*100 -> 99.96884896
A64: Заработная плата | B64: 000 0106 0000000 000 211 | C64: 1973200 | E64: 1973200 | J64: 1973200 | M64: 1973111 | O64: 1973111 | T64: 1973111 | W64: =T64/J64*100 -> 99.99548956
A65: Прочие выплаты | B65: 000 0106 0000000 000 212 | C65: 249100 | E65: 249100 | J65: 249100 | M65: 248838 | O65: 248838 | T65: 248838 | W65: =T65/J65*100 -> 99.89482136
A66: Начисления на выплаты по оплате труда | B66: 000 0106 0000000 000 213 | C66: 588200 | E66: 588200 | J66: 588200 | M66: 587675.5 | O66: 587675.5 | T66: 587675.5 | W66: =T66/J66*100 -> 99.91082965
A67: Оплата работ, услуг | B67: 000 0106 0000000 000 220 | C67: 25273 | E67: 25273 | J67: 25273 | M67: 25273 | O67: 25273 | T67: 25273 | W67: =T67/J67*100 -> 100
A68: Транспортные услуги | B68: 000 0106 0000000 000 222 | C68: 6358 | E68: 6358 | J68: 6358 | M68: 6358 | O68: 6358 | T68: 6358 | W68: =T68/J68*100 -> 100
A69: Прочие работы, услуги | B69: 000 0106 0000000 000 226 | C69: 18915 | E69: 18915 | J69: 18915 | M69: 18915 | O69: 18915 | T69: 18915 | W69: =T69/J69*100 -> 100
A70: Прочие расходы | B70: 000 0106 0000000 000 290 | C70: 7357 | E70: 7357 | J70: 7357 | M70: 7356.2 | O70: 7356.2 | T70: 7356.2 | W70: =T70/J70*100 -> 99.989126
A71: Поступление нефинансовых активов | B71: 000 0106 0000000 000 300 | C71: 73870 | E71: 73870 | J71: 73870 | M71: 73870 | O71: 73870 | T71: 73870 | W71: =T71/J71*100 -> 100
A72: Увеличение стоимости основных средств | B72: 000 0106 0000000 000 310 | C72: 29274 | E72: 29274 | J72: 29274 | M72: 29274 | O72: 29274 | T72: 29274 | W72: =T72/J72*100 -> 100
A73: Увеличение стоимости материальных запасов | B73: 000 0106 0000000 000 340 | C73: 44596 | E73: 44596 | J73: 44596 | M73: 44596 | O73: 44596 | T73: 44596 | W73: =T73/J73*100 -> 100
A74: Резервные фонды | B74: 000 0111 0000000 000 000 | C74: 17378 | E74: 17378 | J74: 17378 | W74: =T74/J74*100 -> 0
A75: Расходы | B75: 000 0111 0000000 000 200 | C75: 17378 | E75: 17378 | J75: 17378 | W75: =T75/J75*100 -> 0
A76: Прочие расходы | B76: 000 0111 0000000 000 290 | C76: 17378 | E76: 17378 | J76: 17378 | W76: =T76/J76*100 -> 0
A77: Другие общегосударственные вопросы | B77: 000 0113 0000000 000 000 | C77: 30418332.84 | E77: 30418332.84 | J77: 30418332.84 | M77: 28683633.14 | O77: 28683633.14 | T77: 28683633.14 | W77: =T77/J77*100 -> 94.29719009
A78: Расходы | B78: 000 0113 0000000 000 200 | C78: 25615212.7 | E78: 25615212.7 | J78: 25615212.7 | M78: 25519090.9 | O78: 25519090.9 | T78: 25519090.9 | W78: =T78/J78*100 -> 99.62474721
A79: Оплата труда и начисления на выплаты по оплате труда | B79: 000 0113 0000000 000 210 | C79: 21277543.42 | E79: 21277543.42 | J79: 21277543.42 | M79: 21270657.61 | O79: 21270657.61 | T79: 21270657.61 | W79: =T79/J79*100 -> 99.96763813
A80: Заработная плата | B80: 000 0113 0000000 000 211 | C80: 16245693.7 | E80: 16245693.7 | J80: 16245693.7 | M80: 16239894.34 | O80: 16239894.34 | T80: 16239894.34 | W80: =T80/J80*100 -> 99.96430217
A81: Прочие выплаты | B81: 000 0113 0000000 000 212 | C81: 79920 | E81: 79920 | J81: 79920 | M81: 79914 | O81: 79914 | T81: 79914 | W81: =T81/J81*100 -> 99.99249249
A82: Начисления на выплаты по оплате труда | B82: 000 0113 0000000 000 213 | C82: 4951929.72 | E82: 4951929.72 | J82: 4951929.72 | M82: 4950849.27 | O82: 4950849.27 | T82: 4950849.27 | W82: =T82/J82*100 -> 99.97818123
A83: Оплата работ, услуг | B83: 000 0113 0000000 000 220 | C83: 3970532.28 | E83: 3970532.28 | J83: 3970532.28 | M83: 3942952.66 | O83: 3942952.66 | T83: 3942952.66 | W83: =T83/J83*100 -> 99.30539237
A84: Услуги связи | B84: 000 0113 0000000 000 221 | C84: 760648.15 | E84: 760648.15 | J84: 760648.15 | M84: 739205.6 | O84: 739205.6 | T84: 739205.6 | W84: =T84/J84*100 -> 97.18101595
A85: Коммунальные услуги | B85: 000 0113 0000000 000 223 | C85: 1638649.98 | E85: 1638649.98 | J85: 1638649.98 | M85: 1638266.61 | O85: 1638266.61 | T85: 1638266.61 | W85: =T85/J85*100 -> 99.97660452
A86: Работы, услуги по содержанию имущества | B86: 000 0113 0000000 000 225 | C86: 937860 | E86: 937860 | J86: 937860 | M86: 937769 | O86: 937769 | T86: 937769 | W86: =T86/J86*100 -> 99.99029706
A87: Прочие работы, услуги | B87: 000 0113 0000000 000 226 | C87: 633374.15 | E87: 633374.15 | J87: 633374.15 | M87: 627711.45 | O87: 627711.45 | T87: 627711.45 | W87: =T87/J87*100 -> 99.10594709
A88: Социальное обеспечение | B88: 000 0113 0000000 000 260 | C88: 1000 | E88: 1000 | J88: 1000 | W88: =T88/J88*100 -> 0
A89: Пособия по социальной помощи населению | B89: 000 0113 0000000 000 262 | C89: 1000 | E89: 1000 | J89: 1000 | W89: =T89/J89*100 -> 0
A90: Прочие расходы | B90: 000 0113 0000000 000 290 | C90: 366137 | E90: 366137 | J90: 366137 | M90: 305480.63 | O90: 305480.63 | T90: 305480.63 | W90: =T90/J90*100 -> 83.43342246
A91: Поступление нефинансовых активов | B91: 000 0113 0000000 000 300 | C91: 4803120.14 | E91: 4803120.14 | J91: 4803120.14 | M91: 3164542.24 | O91: 3164542.24 | T91: 3164542.24 | W91: =T91/J91*100 -> 65.88513607
A92: Увеличение стоимости основных средств | B92: 000 0113 0000000 000 310 | C92: 3457188 | E92: 3457188 | J92: 3457188 | M92: 1823609 | O92: 1823609 | T92: 1823609 | W92: =T92/J92*100 -> 52.74833188
A93: Увеличение стоимости материальных запасов | B93: 000 0113 0000000 000 340 | C93: 1345932.14 | E93: 1345932.14 | J93: 1345932.14 | M93: 1340933.24 | O93: 1340933.24 | T93: 1340933.24 | W93: =T93/J93*100 -> 99.62859197
A94: Национальная оборона | B94: 000 0200 0000000 000 000 | C94: 6000 | E94: 6000 | F94: 676900 | J94: 682900 | M94: 6000 | O94: 6000 | P94: 676900 | T94: 682900 | W94: =T94/J94*100 -> 100
A95: Расходы | B95: 000 0200 0000000 000 200 | F95: 676900 | J95: 676900 | P95: 676900 | T95: 676900 | W95: =T95/J95*100 -> 100
A96: Безвозмездные перечисления бюджетам | B96: 000 0200 0000000 000 250 | F96: 676900 | J96: 676900 | P96: 676900 | T96: 676900 | W96: =T96/J96*100 -> 100
A97: Перечисления другим бюджетам бюджетной системы Российской Федерации | B97: 000 0200 0000000 000 251 | F97: 676900 | J97: 676900 | P97: 676900 | T97: 676900 | W97: =T97/J97*100 -> 100
A98: Поступление нефинансовых активов | B98: 000 0200 0000000 000 300 | C98: 6000 | E98: 6000 | J98: 6000 | M98: 6000 | O98: 6000 | T98: 6000 | W98: =T98/J98*100 -> 100
A99: Увеличение стоимости материальных запасов | B99: 000 0200 0000000 000 340 | C99: 6000 | E99: 6000 | J99: 6000 | M99: 6000 | O99: 6000 | T99: 6000 | W99: =T99/J99*100 -> 100
A100: Мобилизационная и вневойсковая подготовка | B100: 000 0203 0000000 000 000 | C100: 6000 | E100: 6000 | F100: 676900 | J100: 682900 | M100: 6000 | O100: 6000 | P100: 676900 | T100: 682900 | W100: =T100/J100*100 -> 100
A101: Расходы | B101: 000 0203 0000000 000 200 | F101: 676900 | J101: 676900 | P101: 676900 | T101: 676900 | W101: =T101/J101*100 -> 100
A102: Безвозмездные перечисления бюджетам | B102: 000 0203 0000000 000 250 | F102: 676900 | J102: 676900 | P102: 676900 | T102: 676900 | W102: =T102/J102*100 -> 100
A103: Перечисления другим бюджетам бюджетной системы Российской Федерации | B103: 000 0203 0000000 000 251 | F103: 676900 | J103: 676900 | P103: 676900 | T103: 676900 | W103: =T103/J103*100 -> 100
A104: Поступление нефинансовых активов | B104: 000 0203 0000000 000 300 | C104: 6000 | E104: 6000 | J104: 6000 | M104: 6000 | O104: 6000 | T104: 6000 | W104: =T104/J104*100 -> 100
A105: Увеличение стоимости материальных запасов | B105: 000 0203 0000000 000 340 | C105: 6000 | E105: 6000 | J105: 6000 | M105: 6000 | O105: 6000 | T105: 6000 | W105: =T105/J105*100 -> 100
A106: Национальная безопасность и правоохранительная деятельность | B106: 000 0300 0000000 000 000 | C106: 4090700 | E106: 4090700 | F106: 45000 | J106: 4135700 | M106: 4090700 | O106: 4090700 | P106: 45000 | T106: 4135700 | W106: =T106/J106*100 -> 100
A107: Расходы | B107: 000 0300 0000000 000 200 | C107: 627281.53 | E107: 627281.53 | F107: 45000 | J107: 672281.53 | M107: 627281.53 | O107: 627281.53 | P107: 45000 | T107: 672281.53 | W107: =T107/J107*100 -> 100
A108: Оплата труда и начисления на выплаты по оплате труда | B108: 000 0300 0000000 000 210 | C108: 12818.35 | E108: 12818.35 | J108: 12818.35 | M108: 12818.35 | O108: 12818.35 | T108: 12818.35 | W108: =T108/J108*100 -> 100
A109: Прочие выплаты | B109: 000 0300 0000000 000 212 | C109: 12818.35 | E109: 12818.35 | J109: 12818.35 | M109: 12818.35 | O109: 12818.35 | T109: 12818.35 | W109: =T109/J109*100 -> 100
A110: Оплата работ, услуг | B110: 000 0300 0000000 000 220 | C110: 185231.88 | E110: 185231.88 | J110: 185231.88 | M110: 185231.88 | O110: 185231.88 | T110: 185231.88 | W110: =T110/J110*100 -> 100
A111: Услуги связи | B111: 000 0300 0000000 000 221 | C111: 8120 | E111: 8120 | J111: 8120 | M111: 8120 | O111: 8120 | T111: 8120 | W111: =T111/J111*100 -> 100
A112: Транспортные услуги | B112: 000 0300 0000000 000 222 | C112: 82502 | E112: 82502 | J112: 82502 | M112: 82502 | O112: 82502 | T112: 82502 | W112: =T112/J112*100 -> 100
A113: Прочие работы, услуги | B113: 000 0300 0000000 000 226 | C113: 94609.88 | E113: 94609.88 | J113: 94609.88 | M113: 94609.88 | O113: 94609.88 | T113: 94609.88 | W113: =T113/J113*100 -> 100
A114: Безвозмездные перечисления бюджетам | B114: 000 0300 0000000 000 250 | F114: 45000 | J114: 45000 | P114: 45000 | T114: 45000 | W114: =T114/J114*100 -> 100
A115: Перечисления другим бюджетам бюджетной системы Российской Федерации | B115: 000 0300 0000000 000 251 | F115: 45000 | J115: 45000 | P115: 45000 | T115: 45000 | W115: =T115/J115*100 -> 100
A116: Социальное обеспечение | B116: 000 0300 0000000 000 260 | C116: 425000 | E116: 425000 | J116: 425000 | M116: 425000 | O116: 425000 | T116: 425000 | W116: =T116/J116*100 -> 100
A117: Пособия по социальной помощи населению | B117: 000 0300 0000000 000 262 | C117: 425000 | E117: 425000 | J117: 425000 | M117: 425000 | O117: 425000 | T117: 425000 | W117: =T117/J117*100 -> 100
A118: Прочие расходы | B118: 000 0300 0000000 000 290 | C118: 4231.3 | E118: 4231.3 | J118: 4231.3 | M118: 4231.3 | O118: 4231.3 | T118: 4231.3 | W118: =T118/J118*100 -> 100
A119: Поступление нефинансовых активов | B119: 000 0300 0000000 000 300 | C119: 3463418.47 | E119: 3463418.47 | J119: 3463418.47 | M119: 3463418.47 | O119: 3463418.47 | T119: 3463418.47 | W119: =T119/J119*100 -> 100
A120: Увеличение стоимости основных средств | B120: 000 0300 0000000 000 310 | C120: 3453418.47 | E120: 3453418.47 | J120: 3453418.47 | M120: 3453418.47 | O120: 3453418.47 | T120: 3453418.47 | W120: =T120/J120*100 -> 100
A121: Увеличение стоимости материальных запасов | B121: 000 0300 0000000 000 340 | C121: 10000 | E121: 10000 | J121: 10000 | M121: 10000 | O121: 10000 | T121: 10000 | W121: =T121/J121*100 -> 100
A122: Миграционная политика | B122: 000 0311 0000000 000 000 | C122: 4018100 | E122: 4018100 | F122: 45000 | J122: 4063100 | M122: 4018100 | O122: 4018100 | P122: 45000 | T122: 4063100 | W122: =T122/J122*100 -> 100
A123: Расходы | B123: 000 0311 0000000 000 200 | C123: 554681.53 | E123: 554681.53 | F123: 45000 | J123: 599681.53 | M123: 554681.53 | O123: 554681.53 | P123: 45000 | T123: 599681.53 | W123: =T123/J123*100 -> 100
A124: Оплата труда и начисления на выплаты по оплате труда | B124: 000 0311 0000000 000 210 | C124: 12818.35 | E124: 12818.35 | J124: 12818.35 | M124: 12818.35 | O124: 12818.35 | T124: 12818.35 | W124: =T124/J124*100 -> 100
A125: Прочие выплаты | B125: 000 0311 0000000 000 212 | C125: 12818.35 | E125: 12818.35 | J125: 12818.35 | M125: 12818.35 | O125: 12818.35 | T125: 12818.35 | W125: =T125/J125*100 -> 100
A126: Оплата работ, услуг | B126: 000 0311 0000000 000 220 | C126: 112631.88 | E126: 112631.88 | J126: 112631.88 | M126: 112631.88 | O126: 112631.88 | T126: 112631.88 | W126: =T126/J126*100 -> 100
A127: Услуги связи | B127: 000 0311 0000000 000 221 | C127: 8120 | E127: 8120 | J127: 8120 | M127: 8120 | O127: 8120 | T127: 8120 | W127: =T127/J127*100 -> 100
A128: Транспортные услуги | B128: 000 0311 0000000 000 222 | C128: 82502 | E128: 82502 | J128: 82502 | M128: 82502 | O128: 82502 | T128: 82502 | W128: =T128/J128*100 -> 100
A129: Прочие работы, услуги | B129: 000 0311 0000000 000 226 | C129: 22009.88 | E129: 22009.88 | J129: 22009.88 | M129: 22009.88 | O129: 22009.88 | T129: 22009.88 | W129: =T129/J129*100 -> 100
A130: Безвозмездные перечисления бюджетам | B130: 000 0311 0000000 000 250 | F130: 45000 | J130: 45000 | P130: 45000 | T130: 45000 | W130: =T130/J130*100 -> 100
A131: Перечисления другим бюджетам бюджетной системы Российской Федерации | B131: 000 0311 0000000 000 251 | F131: 45000 | J131: 45000 | P131: 45000 | T131: 45000 | W131: =T131/J131*100 -> 100
A132: Социальное обеспечение | B132: 000 0311 0000000 000 260 | C132: 425000 | E132: 425000 | J132: 425000 | M132: 425000 | O132: 425000 | T132: 425000 | W132: =T132/J132*100 -> 100
A133: Пособия по социальной помощи населению | B133: 000 0311 0000000 000 262 | C133: 425000 | E133: 425000 | J133: 425000 | M133: 425000 | O133: 425000 | T133: 425000 | W133: =T133/J133*100 -> 100
A134: Прочие расходы | B134: 000 0311 0000000 000 290 | C134: 4231.3 | E134: 4231.3 | J134: 4231.3 | M134: 4231.3 | O134: 4231.3 | T134: 4231.3 | W134: =T134/J134*100 -> 100
A135: Поступление нефинансовых активов | B135: 000 0311 0000000 000 300 | C135: 3463418.47 | E135: 3463418.47 | J135: 3463418.47 | M135: 3463418.47 | O135: 3463418.47 | T135: 3463418.47 | W135: =T135/J135*100 -> 100
A136: Увеличение стоимости основных средств | B136: 000 0311 0000000 000 310 | C136: 3453418.47 | E136: 3453418.47 | J136: 3453418.47 | M136: 3453418.47 | O136: 3453418.47 | T136: 3453418.47 | W136: =T136/J136*100 -> 100
A137: Увеличение стоимости материальных запасов | B137: 000 0311 0000000 000 340 | C137: 10000 | E137: 10000 | J137: 10000 | M137: 10000 | O137: 10000 | T137: 10000 | W137: =T137/J137*100 -> 100
A138: Другие вопросы в области национальной безопасности и правоохранительной деятельности | B138: 000 0314 0000000 000 000 | C138: 72600 | E138: 72600 | J138: 72600 | M138: 72600 | O138: 72600 | T138: 72600 | W138: =T138/J138*100 -> 100
A139: Расходы | B139: 000 0314 0000000 000 200 | C139: 72600 | E139: 72600 | J139: 72600 | M139: 72600 | O139: 72600 | T139: 72600 | W139: =T139/J139*100 -> 100
A140: Оплата работ, услуг | B140: 000 0314 0000000 000 220 | C140: 72600 | E140: 72600 | J140: 72600 | M140: 72600 | O140: 72600 | T140: 72600 | W140: =T140/J140*100 -> 100
A141: Прочие работы, услуги | B141: 000 0314 0000000 000 226 | C141: 72600 | E141: 72600 | J141: 72600 | M141: 72600 | O141: 72600 | T141: 72600 | W141: =T141/J141*100 -> 100
A142: Национальная экономика | B142: 000 0400 0000000 000 000 | C142: 11577588 | E142: 11577588 | F142: 1520694 | J142: 13098282 | M142: 11575267 | O142: 11575267 | P142: 1520694 | T142: 13095961 | W142: =T142/J142*100 -> 99.98228012
A143: Расходы | B143: 000 0400 0000000 000 200 | C143: 11567588 | E143: 11567588 | F143: 1520694 | J143: 13088282 | M143: 11565267 | O143: 11565267 | P143: 1520694 | T143: 13085961 | W143: =T143/J143*100 -> 99.98226658
A144: Оплата работ, услуг | B144: 000 0400 0000000 000 220 | C144: 11551588 | E144: 11551588 | J144: 11551588 | M144: 11549267 | O144: 11549267 | T144: 11549267 | W144: =T144/J144*100 -> 99.97990752
A145: Работы, услуги по содержанию имущества | B145: 000 0400 0000000 000 225 | C145: 11410088 | E145: 11410088 | J145: 11410088 | M145: 11409293 | O145: 11409293 | T145: 11409293 | W145: =T145/J145*100 -> 99.99303248
A146: Прочие работы, услуги | B146: 000 0400 0000000 000 226 | C146: 141500 | E146: 141500 | J146: 141500 | M146: 139974 | O146: 139974 | T146: 139974 | W146: =T146/J146*100 -> 98.92155477
A147: Безвозмездные перечисления бюджетам | B147: 000 0400 0000000 000 250 | F147: 1520694 | J147: 1520694 | P147: 1520694 | T147: 1520694 | W147: =T147/J147*100 -> 100
A148: Перечисления другим бюджетам бюджетной системы Российской Федерации | B148: 000 0400 0000000 000 251 | F148: 1520694 | J148: 1520694 | P148: 1520694 | T148: 1520694 | W148: =T148/J148*100 -> 100
A149: Прочие расходы | B149: 000 0400 0000000 000 290 | C149: 16000 | E149: 16000 | J149: 16000 | M149: 16000 | O149: 16000 | T149: 16000 | W149: =T149/J149*100 -> 100
A150: Поступление нефинансовых активов | B150: 000 0400 0000000 000 300 | C150: 10000 | E150: 10000 | J150: 10000 | M150: 10000 | O150: 10000 | T150: 10000 | W150: =T150/J150*100 -> 100
A151: Увеличение стоимости основных средств | B151: 000 0400 0000000 000 310 | C151: 10000 | E151: 10000 | J151: 10000 | M151: 10000 | O151: 10000 | T151: 10000 | W151: =T151/J151*100 -> 100
A152: Сельское хозяйство и рыболовство | B152: 000 0405 0000000 000 000 | C152: 4500 | E152: 4500 | J152: 4500 | M152: 3000 | O152: 3000 | T152: 3000 | W152: =T152/J152*100 -> 66.66666667
A153: Расходы | B153: 000 0405 0000000 000 200 | C153: 4500 | E153: 4500 | J153: 4500 | M153: 3000 | O153: 3000 | T153: 3000 | W153: =T153/J153*100 -> 66.66666667
A154: Оплата работ, услуг | B154: 000 0405 0000000 000 220 | C154: 1500 | E154: 1500 | J154: 1500 | W154: =T154/J154*100 -> 0
A155: Прочие работы, услуги | B155: 000 0405 0000000 000 226 | C155: 1500 | E155: 1500 | J155: 1500 | W155: =T155/J155*100 -> 0
A156: Прочие расходы | B156: 000 0405 0000000 000 290 | C156: 3000 | E156: 3000 | J156: 3000 | M156: 3000 | O156: 3000 | T156: 3000 | W156: =T156/J156*100 -> 100
A157: Дорожное хозяйство (дорожные фонды) | B157: 000 0409 0000000 000 000 | C157: 11570088 | E157: 11570088 | F157: 1520694 | J157: 13090782 | M157: 11569267 | O157: 11569267 | P157: 1520694 | T157: 13089961 | W157: =T157/J157*100 -> 99.99372841
A158: Расходы | B158: 000 0409 0000000 000 200 | C158: 11560088 | E158: 11560088 | F158: 1520694 | J158: 13080782 | M158: 11559267 | O158: 11559267 | P158: 1520694 | T158: 13079961 | W158: =T158/J158*100 -> 99.99372362
A159: Оплата работ, услуг | B159: 000 0409 0000000 000 220 | C159: 11550088 | E159: 11550088 | J159: 11550088 | M159: 11549267 | O159: 11549267 | T159: 11549267 | W159: =T159/J159*100 -> 99.99289183
A160: Работы, услуги по содержанию имущества | B160: 000 0409 0000000 000 225 | C160: 11410088 | E160: 11410088 | J160: 11410088 | M160: 11409293 | O160: 11409293 | T160: 11409293 | W160: =T160/J160*100 -> 99.99303248
A161: Прочие работы, услуги | B161: 000 0409 0000000 000 226 | C161: 140000 | E161: 140000 | J161: 140000 | M161: 139974 | O161: 139974 | T161: 139974 | W161: =T161/J161*100 -> 99.98142857
A162: Безвозмездные перечисления бюджетам | B162: 000 0409 0000000 000 250 | F162: 1520694 | J162: 1520694 | P162: 1520694 | T162: 1520694 | W162: =T162/J162*100 -> 100
A163: Перечисления другим бюджетам бюджетной системы Российской Федерации | B163: 000 0409 0000000 000 251 | F163: 1520694 | J163: 1520694 | P163: 1520694 | T163: 1520694 | W163: =T163/J163*100 -> 100
A164: Прочие расходы | B164: 000 0409 0000000 000 290 | C164: 10000 | E164: 10000 | J164: 10000 | M164: 10000 | O164: 10000 | T164: 10000 | W164: =T164/J164*100 -> 100
A165: Поступление нефинансовых активов | B165: 000 0409 0000000 000 300 | C165: 10000 | E165: 10000 | J165: 10000 | M165: 10000 | O165: 10000 | T165: 10000 | W165: =T165/J165*100 -> 100
A166: Увеличение стоимости основных средств | B166: 000 0409 0000000 000 310 | C166: 10000 | E166: 10000 | J166: 10000 | M166: 10000 | O166: 10000 | T166: 10000 | W166: =T166/J166*100 -> 100
A167: Другие вопросы в области национальной экономики | B167: 000 0412 0000000 000 000 | C167: 3000 | E167: 3000 | J167: 3000 | M167: 3000 | O167: 3000 | T167: 3000 | W167: =T167/J167*100 -> 100
A168: Расходы | B168: 000 0412 0000000 000 200 | C168: 3000 | E168: 3000 | J168: 3000 | M168: 3000 | O168: 3000 | T168: 3000 | W168: =T168/J168*100 -> 100
A169: Прочие расходы | B169: 000 0412 0000000 000 290 | C169: 3000 | E169: 3000 | J169: 3000 | M169: 3000 | O169: 3000 | T169: 3000 | W169: =T169/J169*100 -> 100
A170: Жилищно-коммунальное хозяйство | B170: 000 0500 0000000 000 000 | C170: 8281802.07 | E170: 8281802.07 | J170: 8281802.07 | M170: 8170790.59 | O170: 8170790.59 | T170: 8170790.59 | W170: =T170/J170*100 -> 98.65957337
A171: Расходы | B171: 000 0500 0000000 000 200 | C171: 2467849.07 | E171: 2467849.07 | J171: 2467849.07 | M171: 2356897.59 | O171: 2356897.59 | T171: 2356897.59 | W171: =T171/J171*100 -> 95.50412214
A172: Оплата работ, услуг | B172: 000 0500 0000000 000 220 | C172: 2141106 | E172: 2141106 | J172: 2141106 | M172: 2030154.52 | O172: 2030154.52 | T172: 2030154.52 | W172: =T172/J172*100 -> 94.81802956
A173: Работы, услуги по содержанию имущества | B173: 000 0500 0000000 000 225 | C173: 1154500 | E173: 1154500 | J173: 1154500 | M173: 1043696 | O173: 1043696 | T173: 1043696 | W173: =T173/J173*100 -> 90.40242529
A174: Прочие работы, услуги | B174: 000 0500 0000000 000 226 | C174: 986606 | E174: 986606 | J174: 986606 | M174: 986458.52 | O174: 986458.52 | T174: 986458.52 | W174: =T174/J174*100 -> 99.98505178
A175: Безвозмездные перечисления организациям | B175: 000 0500 0000000 000 240 | C175: 326743.07 | E175: 326743.07 | J175: 326743.07 | M175: 326743.07 | O175: 326743.07 | T175: 326743.07 | W175: =T175/J175*100 -> 100
A176: Безвозмездные перечисления государственным и муниципальным организациям | B176: 000 0500 0000000 000 241 | C176: 326743.07 | E176: 326743.07 | J176: 326743.07 | M176: 326743.07 | O176: 326743.07 | T176: 326743.07 | W176: =T176/J176*100 -> 100
A177: Поступление нефинансовых активов | B177: 000 0500 0000000 000 300 | C177: 4519753 | E177: 4519753 | J177: 4519753 | M177: 4519693 | O177: 4519693 | T177: 4519693 | W177: =T177/J177*100 -> 99.99867249
A178: Увеличение стоимости основных средств | B178: 000 0500 0000000 000 310 | C178: 4330553 | E178: 4330553 | J178: 4330553 | M178: 4330493 | O178: 4330493 | T178: 4330493 | W178: =T178/J178*100 -> 99.9986145
A179: Увеличение стоимости материальных запасов | B179: 000 0500 0000000 000 340 | C179: 189200 | E179: 189200 | J179: 189200 | M179: 189200 | O179: 189200 | T179: 189200 | W179: =T179/J179*100 -> 100
A180: Поступление финансовых активов | B180: 000 0500 0000000 000 500 | C180: 1294200 | E180: 1294200 | J180: 1294200 | M180: 1294200 | O180: 1294200 | T180: 1294200 | W180: =T180/J180*100 -> 100
A181: Увеличение стоимости акций и иных форм участия в капитале | B181: 000 0500 0000000 000 530 | C181: 1294200 | E181: 1294200 | J181: 1294200 | M181: 1294200 | O181: 1294200 | T181: 1294200 | W181: =T181/J181*100 -> 100
A182: Коммунальное хозяйство | B182: 000 0502 0000000 000 000 | C182: 8046059 | E182: 8046059 | J182: 8046059 | M182: 7935047.52 | O182: 7935047.52 | T182: 7935047.52 | W182: =T182/J182*100 -> 98.62029995
A183: Расходы | B183: 000 0502 0000000 000 200 | C183: 2232106 | E183: 2232106 | J183: 2232106 | M183: 2121154.52 | O183: 2121154.52 | T183: 2121154.52 | W183: =T183/J183*100 -> 95.02929162
A184: Оплата работ, услуг | B184: 000 0502 0000000 000 220 | C184: 2141106 | E184: 2141106 | J184: 2141106 | M184: 2030154.52 | O184: 2030154.52 | T184: 2030154.52 | W184: =T184/J184*100 -> 94.81802956
A185: Работы, услуги по содержанию имущества | B185: 000 0502 0000000 000 225 | C185: 1154500 | E185: 1154500 | J185: 1154500 | M185: 1043696 | O185: 1043696 | T185: 1043696 | W185: =T185/J185*100 -> 90.40242529
A186: Прочие работы, услуги | B186: 000 0502 0000000 000 226 | C186: 986606 | E186: 986606 | J186: 986606 | M186: 986458.52 | O186: 986458.52 | T186: 986458.52 | W186: =T186/J186*100 -> 99.98505178
A187: Безвозмездные перечисления организациям | B187: 000 0502 0000000 000 240 | C187: 91000 | E187: 91000 | J187: 91000 | M187: 91000 | O187: 91000 | T187: 91000 | W187: =T187/J187*100 -> 100
A188: Безвозмездные перечисления государственным и муниципальным организациям | B188: 000 0502 0000000 000 241 | C188: 91000 | E188: 91000 | J188: 91000 | M188: 91000 | O188: 91000 | T188: 91000 | W188: =T188/J188*100 -> 100
A189: Поступление нефинансовых активов | B189: 000 0502 0000000 000 300 | C189: 4519753 | E189: 4519753 | J189: 4519753 | M189: 4519693 | O189: 4519693 | T189: 4519693 | W189: =T189/J189*100 -> 99.99867249
A190: Увеличение стоимости основных средств | B190: 000 0502 0000000 000 310 | C190: 4330553 | E190: 4330553 | J190: 4330553 | M190: 4330493 | O190: 4330493 | T190: 4330493 | W190: =T190/J190*100 -> 99.9986145
A191: Увеличение стоимости материальных запасов | B191: 000 0502 0000000 000 340 | C191: 189200 | E191: 189200 | J191: 189200 | M191: 189200 | O191: 189200 | T191: 189200 | W191: =T191/J191*100 -> 100
A192: Поступление финансовых активов | B192: 000 0502 0000000 000 500 | C192: 1294200 | E192: 1294200 | J192: 1294200 | M192: 1294200 | O192: 1294200 | T192: 1294200 | W192: =T192/J192*100 -> 100
A193: Увеличение стоимости акций и иных форм участия в капитале | B193: 000 0502 0000000 000 530 | C193: 1294200 | E193: 1294200 | J193: 1294200 | M193: 1294200 | O193: 1294200 | T193: 1294200 | W193: =T193/J193*100 -> 100
A194: Другие вопросы в области жилищно-коммунального хозяйства | B194: 000 0505 0000000 000 000 | C194: 235743.07 | E194: 235743.07 | J194: 235743.07 | M194: 235743.07 | O194: 235743.07 | T194: 235743.07 | W194: =T194/J194*100 -> 100
A195: Расходы | B195: 000 0505 0000000 000 200 | C195: 235743.07 | E195: 235743.07 | J195: 235743.07 | M195: 235743.07 | O195: 235743.07 | T195: 235743.07 | W195: =T195/J195*100 -> 100
A196: Безвозмездные перечисления организациям | B196: 000 0505 0000000 000 240 | C196: 235743.07 | E196: 235743.07 | J196: 235743.07 | M196: 235743.07 | O196: 235743.07 | T196: 235743.07 | W196: =T196/J196*100 -> 100
A197: Безвозмездные перечисления государственным и муниципальным организациям | B197: 000 0505 0000000 000 241 | C197: 235743.07 | E197: 235743.07 | J197: 235743.07 | M197: 235743.07 | O197: 235743.07 | T197: 235743.07 | W197: =T197/J197*100 -> 100
A198: Охрана окружающей среды | B198: 000 0600 0000000 000 000 | C198: 561800 | E198: 561800 | J198: 561800 | M198: 441203.74 | O198: 441203.74 | T198: 441203.74 | W198: =T198/J198*100 -> 78.53395158
A199: Расходы | B199: 000 0600 0000000 000 200 | C199: 508300 | E199: 508300 | J199: 508300 | M199: 387703.74 | O199: 387703.74 | T199: 387703.74 | W199: =T199/J199*100 -> 76.27458981
A200: Оплата работ, услуг | B200: 000 0600 0000000 000 220 | C200: 327800 | E200: 327800 | J200: 327800 | M200: 207865.52 | O200: 207865.52 | T200: 207865.52 | W200: =T200/J200*100 -> 63.41230018
A201: Работы, услуги по содержанию имущества | B201: 000 0600 0000000 000 225 | C201: 327207.1 | E201: 327207.1 | J201: 327207.1 | M201: 207272.62 | O201: 207272.62 | T201: 207272.62 | W201: =T201/J201*100 -> 63.34600319
A202: Прочие работы, услуги | B202: 000 0600 0000000 000 226 | C202: 592.9 | E202: 592.9 | J202: 592.9 | M202: 592.9 | O202: 592.9 | T202: 592.9 | W202: =T202/J202*100 -> 100
... 131 more rows

Sheet Источники
A2: 3. Источники финансирования дефицита бюджета | V2: Форма 0503317 с.3
D4: консолидиро- ванный бюджет субъекта Российской Федерации и территориального государственного внебюджетного фонда | F4: консолидиро-ванный бюджет субъекта Российской Федерации | H4: бюджет субъекта Российской Федерации | I4: бюджеты внутригородских муниципальных образований городов федерального значения Москвы и Санкт-Петербурга | J4: бюджеты городских округов | K4: Утвержденные бюджетные назначения на 2012 год | L4: бюджеты городских и сельских поселений | M4: бюджет территори- ального государст- венного внебюджетного фонда | N4: консолидиро- ванный бюджет субъекта Российской Федерации и территориального государственного внебюджетного фонда | P4: консолидиро- ванный бюджет субъекта Российской Федерации | R4: бюджет субъекта Российской Федерации | S4: бюджеты внутригородских муниципальных образований городов федерального значения Москвы и Санкт-Петербурга | T4: бюджеты городских округов | U4: Исполнено за 2012 год | V4: бюджеты городских и сельских поселений | W4: бюджет территори- ального государст- венного внебюджетного фонда
E5: суммы подлежащие исключению в рамках консолидированного бюджета субъекта Российской Федерации и бюджета территориального государственного внебюджетного фонда | G5: суммы подлежащие исключению в рамках консолидированного бюджета субъекта Российской Федерации | O5: суммы подлежащие исключению в рамках консолидированного бюджета субъекта Российской Федерации и бюджета территориального государственного внебюджетного фонда | Q5: суммы подлежащие исключению в рамках консолидированного бюджета субъекта Российской Федерации
A6: 1 | B6: 2 | C6: 3 | D6: 4 | E6: 5 | F6: 6 | G6: 7 | H6: 8 | I6: 9 | J6: 10 | K6: 4 | L6: 12 | M6: 13 | N6: 14 | O6: 15 | P6: 16 | Q6: 17 | R6: 18 | S6: 19 | T6: 20 | U6: 5 | V6: 22 | W6: 23
A7: Источники финансирования дефицита бюджетов - всего | B7: 500 | C7: х | D7: 163857188.3 | F7: 163857188.3 | G7: -159982161 | K7: 3875027.28 | N7: 157593345.1 | P7: 157593345.1 | Q7: -159014299.3 | U7: -1420954.22
A8: в том числе:
A9: Изменение остатков средств на счетах по учету средств бюджета | B9: 700 | C9: 000 0105000000 0000 000 | D9: 163857188.3 | F9: 163857188.3 | G9: -159982161 | K9: 3875027.28 | N9: 157593345.1 | P9: 157593345.1 | Q9: -159014299.3 | U9: -1420954.22
A10: Увеличение остатков средств бюджетов | B10: 710 | C10: 000 0105000000 0000 500 | D10: -62554700 | F10: -62554700 | G10: -170664855 | K10: -233219555 | N10: -69298899.31 | P10: -69298899.31 | Q10: -169696993.3 | U10: -238995892.6
A11: Увеличение прочих остатков средств бюджетов | B11: 710 | C11: 000 0105020000 0000 500 | D11: -62554700 | F11: -62554700 | G11: -170664855 | K11: -233219555 | N11: -69298899.31 | P11: -69298899.31 | Q11: -169696993.3 | U11: -238995892.6
A12: Увеличение прочих остатков денежных средств бюджетов | B12: 710 | C12: 000 0105020100 0000 510 | D12: -62554700 | F12: -62554700 | G12: -170664855 | K12: -233219555 | N12: -69298899.31 | P12: -69298899.31 | Q12: -169696993.3 | U12: -238995892.6
A13: Увеличение прочих остатков денежных средств бюджетов муниципальных районов | B13: 710 | C13: 000 0105020105 0000 510 | D13: -62554700 | F13: -62554700 | G13: -170664855 | K13: -233219555 | N13: -69298899.31 | P13: -69298899.31 | Q13: -169696993.3 | U13: -238995892.6
A14: Уменьшение остатков средств бюджетов | B14: 720 | C14: 000 0105000000 0000 600 | D14: 226411888.3 | F14: 226411888.3 | G14: 10682694 | K14: 237094582.3 | N14: 226892244.4 | P14: 226892244.4 | Q14: 10682694 | U14: 237574938.4
A15: Уменьшение прочих остатков средств бюджетов | B15: 720 | C15: 000 0105020000 0000 600 | D15: 226411888.3 | F15: 226411888.3 | G15: 10682694 | K15: 237094582.3 | N15: 226892244.4 | P15: 226892244.4 | Q15: 10682694 | U15: 237574938.4
A16: Уменьшение прочих остатков денежных средств бюджетов | B16: 720 | C16: 000 0105020100 0000 610 | D16: 226411888.3 | F16: 226411888.3 | G16: 10682694 | K16: 237094582.3 | N16: 226892244.4 | P16: 226892244.4 | Q16: 10682694 | U16: 237574938.4
A17: Уменьшение прочих остатков денежных средств бюджетов муниципальных районов | B17: 720 | C17: 000 0105020105 0000 610 | D17: 226411888.3 | F17: 226411888.3 | G17: 10682694 | K17: 237094582.3 | N17: 226892244.4 | P17: 226892244.4 | Q17: 10682694 | U17: 237574938.4
E20: Попова Т В
E21: (расшифровка подписи)
E23: Давыдова С М
E24: (расшифровка подписи)
